lending/lending_fUSD_20241005
["ID","MTS","AMOUNT","RATE_DAILY","PERIOD"]
[339901754,1728147119272,-500.0,0.0004041,30]
[339901755,1728147119285,-500.0,0.0004041,30]
[339901756,1728147119296,-985.84,0.0004041,30]
[339901757,1728147119307,-500.0,0.0004041,30]
[339901758,1728147119319,-1049.3,0.0004041,30]
[339901759,1728147119330,-1294.19,0.0004041,30]
[339901760,1728147119340,-687.14,0.0004041,30]
[339901761,1728147119353,-500.0,0.0004041,30]
[339901762,1728147119365,-793.27,0.0004041,30]
[339901763,1728147119376,-500.0,0.0004041,30]
[339901764,1728147119388,-500.0,0.0004041,30]
[339901765,1728147119399,-500.0,0.0004041,30]
[339901766,1728147119409,-500.0,0.0004041,30]
[339901767,1728147119419,-2888.1,0.0004041,30]
[339901768,1728147119431,-502.40521133,0.0004041,30]
[339901769,1728147119441,-500.0,0.0004041,30]
[339901770,1728147119452,-500.0,0.0004041,30]
[339901771,1728147119462,-989.98,0.0004041,30]
[339901772,1728147119473,-500.0,0.0004041,30]
[339901773,1728147119483,-500.0,0.0004041,30]
[339901774,1728147119494,-500.0,0.0004041,30]
[339901775,1728147119505,-1432.95,0.0004041,30]
[339901776,1728147119515,-724.21,0.0004041,30]
[339901777,1728147119526,-550.68,0.0004041,30]
[339901778,1728147119537,-543.28,0.0004041,30]
[339901779,1728147119547,-500.0,0.0004041,30]
[339901780,1728147119558,-753.39,0.0004041,30]
[339901781,1728147119569,-807.23,0.0004041,30]
[339901782,1728147119580,-503.27239396,0.0004041,30]
[339901783,1728147119590,-500.0,0.0004041,30]
[339901784,1728147119601,-500.0,0.0004041,30]
[339901785,1728147119611,-708.64,0.0004041,30]
[339901786,1728147119622,-562.5,0.0004041,30]
[339901787,1728147119633,-500.0,0.0004041,30]
[339901788,1728147119643,-500.0,0.0004041,30]
[339901789,1728147119654,-500.0,0.0004041,30]
[339901790,1728147119665,-500.0,0.0004041,30]
[339901791,1728147119675,-687.72,0.0004041,30]
[339901792,1728147119686,-1195.82,0.0004041,30]
[339901793,1728147119697,-905.32,0.0004041,7]
[339901794,1728147119708,-968.05,0.0004041,30]
[339901795,1728147119719,-1289.36,0.0004041,30]
[339901796,1728147119730,-1417.19,0.0004041,30]
[339901797,1728147119740,-763.68,0.0004041,30]
[339901798,1728147119759,-500.0,0.0004041,30]
[339901799,1728147119769,-500.0,0.0004041,30]
[339901800,1728147119780,-1687.35,0.0004041,30]
[339901801,1728147119791,-500.0,0.0004041,30]
[339901802,1728147119802,-888.0,0.0004041,120]
[339901803,1728147119814,-500.0,0.0004041,30]
[339901804,1728147119824,-785.36,0.0004041,30]
[339901805,1728147119835,-507.26879208,0.0004041,30]
[339901806,1728147119846,-500.0,0.0004041,30]
[339901807,1728147119857,-500.0,0.0004041,30]
[339901808,1728147119868,-1179.64,0.0004041,30]
[339901809,1728147119879,-500.0,0.0004041,30]
[339901810,1728147119890,-582.36,0.0004041,30]
[339901811,1728147119901,-500.0,0.0004041,30]
[339901812,1728147119911,-511.8786453,0.0004041,30]
[339901813,1728147119922,-500.0,0.0004041,30]
[339901814,1728147119932,-643.53,0.0004041,30]
[339901815,1728147119943,-500.0,0.0004041,30]
[339901816,1728147119954,-1536.92,0.0004041,30]
[339901817,1728147119964,-1213.33,0.0004041,30]
[339901818,1728147119974,-533.33,0.0004041,30]
[339901819,1728147119985,-711.86,0.0004041,30]
[339901820,1728147119996,-1142.18,0.0004041,30]
[339901821,1728147120007,-636.99315271,0.0004041,30]
[339901822,1728147120019,-500.0,0.0004041,30]
[339901823,1728147120030,-786.32,0.0004041,30]
[339901824,1728147120041,-1479.11,0.0004041,30]
[339901825,1728147120052,-500.0,0.0004041,30]
[339901826,1728147120063,-500.0,0.0004041,30]
[339901827,1728147120074,-649.26,0.0004041,30]
[339901828,1728147120084,-500.0,0.0004041,30]
[339901829,1728147120095,-903.52,0.0004041,30]
[339901830,1728147120105,-500.0,0.0004041,30]
[339901831,1728147120116,-915.1,0.0004041,30]
[339901832,1728147120127,-500.0,0.0004041,30]
[339901833,1728147120138,-500.0,0.0004041,30]
[339901834,1728147120149,-642.95,0.0004041,30]
[339901835,1728147120160,-500.0,0.0004041,30]
[339901836,1728147120171,-931.55,0.0004041,30]
[339901837,1728147120182,-500.0,0.0004041,30]
[339901838,1728147120193,-1521.03,0.0004041,30]
[339901839,1728147120205,-500.0,0.0004041,30]
[339901840,1728147120216,-500.0,0.0004041,30]
[339901841,1728147120227,-500.0,0.0004041,30]
[339901842,1728147120238,-1032.8,0.0004041,30]
[339901843,1728147120253,-500.0,0.0004041,30]
[339901844,1728147120270,-500.0,0.0004041,30]
[339901845,1728147120282,-500.0,0.0004041,30]
[339901846,1728147120293,-500.0,0.0004041,30]
[339901847,1728147120304,-901.49,0.0004041,30]
[339901848,1728147120315,-500.0,0.0004041,30]
[339901849,1728147120326,-1061.61,0.0004041,30]
[339901850,1728147120337,-1304.21,0.0004041,30]
[339901851,1728147120352,-1011.56,0.0004041,30]
[339901852,1728147120364,-701.97,0.0004041,30]
[339901853,1728147120375,-500.0,0.0004041,30]
[339901854,1728147120386,-534.36,0.0004041,30]
[339901855,1728147120396,-589.66,0.0004041,30]
[339901856,1728147120407,-512.82,0.0004041,30]
[339901857,1728147120417,-500.0,0.0004041,30]
[339901858,1728147120428,-500.0,0.0004041,30]
[339901859,1728147120439,-460.6,0.0004041,30]
[339901860,1728147120450,-500.0,0.0004041,30]
[339901861,1728147120463,-1198.94,0.0004041,30]
[339901862,1728147120474,-500.0,0.0004041,30]
[339901863,1728147120485,-836.31,0.0004041,30]
[339901864,1728147120496,-714.05,0.0004041,30]
[339901865,1728147120518,-908.97,0.0004041,30]
[339901866,1728147120529,-500.0,0.0004041,30]
[339901867,1728147120540,-787.9,0.0004041,30]
[339901868,1728147120551,-500.0,0.0004041,30]
[339901869,1728147120563,-500.0,0.0004041,30]
[339901870,1728147120576,-530.83,0.0004041,30]
[339901871,1728147120587,-1485.49,0.0004041,30]
[339901872,1728147120598,-500.0,0.0004041,30]
[339901873,1728147120610,-500.0,0.0004041,30]
[339901874,1728147120621,-500.0,0.0004041,30]
[339901875,1728147120632,-500.0,0.0004041,30]
[339901876,1728147120643,-500.0,0.0004041,30]
[339901877,1728147120655,-763.04,0.0004041,30]
[339901878,1728147120666,-518.08,0.0004041,30]
[339901879,1728147120677,-500.0,0.0004041,30]
[339901880,1728147120689,-500.0,0.0004041,30]
[339901881,1728147120701,-500.0,0.0004041,30]
[339901882,1728147120712,-563.43,0.0004041,30]
[339901883,1728147120723,-612.29,0.0004041,30]
[339901884,1728147120734,-500.0,0.0004041,30]
[339901885,1728147120749,-500.0,0.0004041,30]
[339901886,1728147120761,-822.39,0.0004041,30]
[339901887,1728147120772,-500.0,0.0004041,30]
[339901888,1728147120784,-1306.65,0.0004041,30]
[339901889,1728147120795,-1233.21,0.0004041,30]
[339901890,1728147120808,-583.48,0.0004041,30]
[339901891,1728147120819,-868.45,0.0004041,30]
[339901892,1728147120831,-500.0,0.0004041,30]
[339901893,1728147120842,-732.59,0.0004041,30]
[339901894,1728147120853,-500.0,0.0004041,30]
[339901895,1728147120864,-500.0,0.0004041,30]
[339901896,1728147120876,-500.0,0.0004041,30]
[339901897,1728147120887,-500.0,0.0004041,30]
[339901898,1728147120898,-505.18076534,0.0004041,30]
[339901899,1728147120910,-1321.45,0.0004041,30]
[339901900,1728147120921,-528.8,0.0004041,30]
[339901901,1728147120932,-658.55,0.0004041,30]
[339901902,1728147120943,-500.0,0.0004041,30]
[339901903,1728147120955,-500.0,0.0004041,30]
[339901904,1728147120966,-500.0,0.0004041,30]
[339901905,1728147120977,-500.0,0.0004041,30]
[339901906,1728147120989,-500.0,0.0004041,30]
[339901907,1728147121003,-500.0,0.0004041,30]
[339901908,1728147121014,-993.81,0.0004041,30]
[339901909,1728147121025,-500.0,0.0004041,30]
[339901910,1728147121036,-500.0,0.0004041,30]
[339901911,1728147121047,-500.0,0.0004041,30]
[339901912,1728147121058,-500.0,0.0004041,30]
[339901913,1728147121069,-354.8057808,0.0004041,30]
[339901914,1728147121081,-500.0,0.0004041,30]
[339901915,1728147121092,-953.14,0.0004041,30]
[339901916,1728147121104,-500.0,0.0004041,30]
[339901917,1728147121115,-694.83,0.0004041,30]
[339901918,1728147121126,-1392.91,0.0004041,30]
[339901919,1728147121137,-500.0,0.0004041,30]
[339901920,1728147121148,-500.0,0.0004041,30]
[339901921,1728147121159,-500.0,0.0004041,30]
[339901922,1728147121170,-500.0,0.0004041,30]
[339901923,1728147121182,-500.0,0.0004041,30]
[339901924,1728147121202,-502.13077447,0.0004041,30]
[339901925,1728147121218,-500.0,0.0004041,30]
[339901926,1728147121231,-500.0,0.0004041,30]
[339901927,1728147121245,-698.41,0.0004041,30]
[339901928,1728147121271,-771.14,0.0004041,30]
[339901929,1728147121284,-500.0,0.0004041,30]
[339901930,1728147121730,-500.0,0.0004041,30]
[339901931,1728147121752,-885.57,0.0004041,30]
[339901932,1728147121767,-500.0,0.0004041,30]
[339901933,1728147121782,-500.0,0.0004041,30]
[339901934,1728147121791,-1011.8,0.0004041,30]
[339901935,1728147121800,-563.02,0.0004041,30]
[339901936,1728147121809,-702.92,0.0004041,30]
[339901937,1728147121818,-1294.33,0.0004041,30]
[339901938,1728147121828,-1565.99,0.0004041,30]
[339901939,1728147121837,-690.04,0.0004041,30]
[339901940,1728147121847,-918.37,0.0004041,30]
[339901941,1728147121858,-666.23,0.0004041,30]
[339901942,1728147121868,-500.0,0.0004041,30]
[339901943,1728147121878,-500.0,0.0004041,30]
[339901944,1728147121888,-894.45,0.0004041,30]
[339901945,1728147121898,-500.0,0.0004041,30]
[339901946,1728147121908,-500.0,0.0004041,30]
[339901947,1728147121918,-762.45,0.0004041,30]
[339901948,1728147121928,-500.0,0.0004041,30]
[339901949,1728147121938,-1037.04,0.0004041,30]
[339901950,1728147121947,-588.86,0.0004041,30]
[339901951,1728147121957,-729.96,0.0004041,30]
[339901952,1728147121967,-500.0,0.0004041,30]
[339901953,1728147121976,-500.0,0.0004041,30]
[339901954,1728147121985,-500.0,0.0004041,30]
[339901955,1728147121995,-500.0,0.0004041,30]
[339901956,1728147122013,-500.0,0.0004041,30]
[339901957,1728147122023,-500.0,0.0004041,30]
[339901958,1728147122033,-922.09,0.0004041,30]
[339901959,1728147122042,-500.0,0.0004041,30]
[339901960,1728147122052,-500.0,0.0004041,30]
[339901961,1728147122062,-502.45696942,0.0004041,30]
[339901962,1728147122071,-500.0,0.0004041,30]
[339901963,1728147122081,-500.0,0.0004041,30]
[339901964,1728147122091,-500.0,0.0004041,30]
[339901965,1728147122101,-1207.02,0.0004041,30]
[339901966,1728147122111,-500.0,0.0004041,30]
[339901967,1728147122121,-1060.1,0.0004041,30]
[339901968,1728147122131,-500.0,0.0004041,30]
[339901969,1728147122141,-500.0,0.0004041,30]
[339901970,1728147122151,-500.0,0.0004041,30]
[339901971,1728147122161,-500.0,0.0004041,30]
[339901972,1728147122170,-500.0,0.0004041,30]
[339901973,1728147122180,-500.0,0.0004041,30]
[339901974,1728147122190,-500.0,0.0004041,30]
[339901975,1728147122199,-501.25,0.0004041,30]
[339901976,1728147122209,-668.81,0.0004041,30]
[339901977,1728147122218,-525.19,0.0004041,30]
[339901978,1728147122228,-500.0,0.0004041,30]
[339901979,1728147122237,-648.61,0.0004041,30]
[339901980,1728147122249,-500.0,0.0004041,30]
[339901981,1728147122260,-500.0,0.0004041,30]
[339901982,1728147122269,-500.0,0.0004041,30]
[339901983,1728147122279,-500.0,0.0004041,30]
[339901984,1728147122290,-1480.12,0.0004041,30]
[339901985,1728147122299,-500.0,0.0004041,30]
[339901986,1728147122310,-500.0,0.0004041,30]
[339901987,1728147122319,-500.0,0.0004041,30]
[339901988,1728147122329,-500.0,0.0004041,30]
[339901989,1728147122338,-1830.42,0.0004041,30]
[339901990,1728147122350,-500.0,0.0004041,30]
[339901991,1728147122360,-500.0,0.0004041,30]
[339901992,1728147122369,-1094.29,0.0004041,30]
[339901993,1728147122379,-500.0,0.0004041,30]
[339901994,1728147122388,-692.2,0.0004041,30]
[339901995,1728147122398,-1171.31,0.0004041,30]
[339901996,1728147122408,-1156.11,0.0004041,30]
[339901997,1728147122418,-980.64,0.0004041,30]
[339901998,1728147122427,-993.33,0.0004041,30]
[339901999,1728147122438,-759.97,0.0004041,30]
[339902000,1728147122447,-500.0,0.0004041,30]
[339902001,1728147122457,-500.0,0.0004041,30]
[339902002,1728147122466,-500.0,0.0004041,30]
[339902003,1728147122477,-500.0,0.0004041,30]
[339902004,1728147122486,-500.0,0.0004041,30]
[339902005,1728147122496,-809.87,0.0004041,30]
[339902006,1728147122508,-500.0,0.0004041,30]
[339902007,1728147122517,-500.0,0.0004041,30]
[339902008,1728147122527,-500.0,0.0004041,30]
[339902009,1728147122536,-500.0,0.0004041,30]
[339902010,1728147122546,-500.0,0.0004041,30]
[339902011,1728147122556,-1128.79,0.0004041,30]
[339902012,1728147122566,-620.59,0.0004041,30]
[339902013,1728147122575,-1212.72,0.0004041,30]
[339902014,1728147122585,-500.0,0.0004041,30]
[339902015,1728147122595,-1002.95,0.0004041,30]
[339902016,1728147122605,-737.61,0.0004041,30]
[339902017,1728147122616,-500.0,0.0004041,30]
[339902018,1728147122626,-524.73,0.0004041,30]
[339902019,1728147122635,-500.0,0.0004041,30]
[339902020,1728147122645,-500.0,0.0004041,30]
[339902021,1728147122655,-1543.57,0.0004041,30]
[339902022,1728147122665,-1377.95,0.0004041,30]
[339902023,1728147122675,-813.84,0.0004041,30]
[339902024,1728147122686,-531.1,0.0004041,30]
[339902025,1728147122696,-500.0,0.0004041,30]
[339902026,1728147122706,-500.0,0.0004041,30]
[339902027,1728147122716,-500.0,0.0004041,30]
[339902028,1728147122726,-637.70586898,0.0004041,30]
[339902029,1728147122735,-500.0,0.0004041,30]
[339902030,1728147122745,-961.07,0.0004041,30]
[339902031,1728147122756,-784.98,0.0004041,30]
[339902032,1728147122766,-711.97,0.0004041,30]
[339902033,1728147122776,-917.69,0.0004041,30]
[339902034,1728147122786,-500.0,0.0004041,30]
[339902035,1728147122796,-500.0,0.0004041,30]
[339902036,1728147122806,-508.8513992,0.0004041,30]
[339902037,1728147122815,-500.0,0.0004041,30]
[339902038,1728147122826,-906.22,0.0004041,30]
[339902039,1728147122836,-782.36,0.0004041,30]
[339902040,1728147122846,-500.0,0.0004041,30]
[339902041,1728147122855,-677.3,0.0004041,30]
[339902042,1728147122865,-500.0,0.0004041,30]
[339902043,1728147122875,-500.0,0.0004041,30]
[339902044,1728147122885,-910.94,0.0004041,30]
[339902045,1728147122895,-1205.88,0.0004041,30]
[339902046,1728147122904,-1344.47,0.0004041,30]
[339902047,1728147122913,-542.61,0.0004041,30]
[339902048,1728147122923,-151.0,0.0004041,14]
[339902049,1728147122933,-814.32,0.0004041,30]
[339902050,1728147122943,-500.0,0.0004041,30]
[339902051,1728147122953,-500.0,0.0004041,30]
[339902052,1728147122963,-500.0,0.0004041,30]
[339902053,1728147122973,-948.43,0.0004041,30]
[339902054,1728147122982,-500.0,0.0004041,30]
[339902055,1728147122992,-500.0,0.0004041,30]
[339902056,1728147123003,-500.0,0.0004041,30]
[339902057,1728147123013,-500.0,0.0004041,30]
[339902058,1728147123022,-676.76,0.0004041,30]
[339902059,1728147123032,-1066.49,0.0004041,30]
[339902060,1728147123042,-500.0,0.0004041,30]
[339902061,1728147123052,-250.0,0.0004041,14]
[339902062,1728147123062,-500.0,0.0004041,30]
[339902063,1728147123072,-1541.44,0.0004041,30]
[339902064,1728147123082,-500.0,0.0004041,30]
[339902065,1728147123092,-1381.37,0.0004041,30]
[339902066,1728147123101,-500.0,0.0004041,30]
[339902067,1728147123112,-500.0,0.0004041,30]
[339902068,1728147123121,-500.0,0.0004041,30]
[339902069,1728147123132,-500.0,0.0004041,30]
[339902070,1728147123142,-500.0,0.0004041,30]
[339902071,1728147123152,-500.0,0.0004041,30]
[339902072,1728147123162,-250.0,0.0004041,14]
[339902073,1728147123172,-500.0,0.0004041,30]
[339902074,1728147123184,-496.6946,0.0004041,30]
[339902075,1728147123193,-500.0,0.0004041,30]
[339902076,1728147123204,-500.0,0.0004041,30]
[339902077,1728147123213,-659.62,0.0004041,30]
[339902078,1728147123223,-1320.61,0.0004041,30]
[339902079,1728147123233,-500.0,0.0004041,30]
[339902080,1728147123243,-500.0,0.0004041,30]
[339902081,1728147123254,-500.0,0.0004041,30]
[339902082,1728147123264,-500.0,0.0004041,30]
[339902083,1728147123274,-500.0,0.0004041,30]
[339902084,1728147123283,-500.0,0.0004041,30]
[339902085,1728147123294,-1392.32,0.0004041,30]
[339902086,1728147123304,-500.0,0.0004041,30]
[339902087,1728147123314,-1117.39,0.0004041,30]
[339902088,1728147123324,-500.0,0.0004041,30]
[339902089,1728147123334,-500.0,0.0004041,30]
[339902090,1728147123346,-500.0,0.0004041,30]
[339902091,1728147123357,-500.0,0.0004041,30]
[339902092,1728147123367,-500.0,0.0004041,30]
[339902093,1728147123377,-1450.24,0.0004041,30]
[339902094,1728147123386,-995.8,0.0004041,30]
[339902095,1728147123396,-2170.1,0.0004041,30]
[339902096,1728147123406,-1452.19,0.0004041,30]
[339902097,1728147123416,-877.02,0.0004041,30]
[339902098,1728147123426,-500.0,0.0004041,30]
[339902099,1728147123436,-182.03,0.0004041,30]
[339902100,1728147123445,-500.0,0.0004041,30]
[339902101,1728147123455,-500.0,0.0004041,30]
[339902102,1728147123464,-746.73,0.0004041,30]
[339902103,1728147123474,-1409.59,0.0004041,30]
[339902104,1728147123483,-679.22,0.0004041,30]
[339902105,1728147123493,-1020.04,0.0004041,30]
[339902106,1728147123502,-666.18,0.0004041,30]
[339902107,1728147123513,-500.0,0.0004041,30]
[339902108,1728147123522,-500.0,0.0004041,30]
[339902109,1728147123531,-500.0,0.0004041,30]
[339902110,1728147123541,-500.0,0.0004041,30]
[339902111,1728147123550,-569.48,0.0004041,30]
[339902112,1728147123560,-1089.28,0.0004041,30]
[339902113,1728147123570,-980.44,0.0004041,30]
[339902114,1728147123579,-500.0,0.0004041,30]
[339902115,1728147123588,-568.81,0.0004041,30]
[339902116,1728147123597,-1354.9,0.0004041,30]
[339902117,1728147123606,-3092.09,0.0004041,30]
[339902118,1728147123616,-500.0,0.0004041,30]
[339902119,1728147123625,-1117.04,0.0004041,30]
[339902120,1728147123635,-500.0,0.0004041,30]
[339902121,1728147123644,-500.0,0.0004041,30]
[339902122,1728147123653,-1673.25,0.0004041,30]
[339902123,1728147123663,-500.0,0.0004041,30]
[339902124,1728147123673,-500.0,0.0004041,30]
[339902125,1728147123683,-1400.9,0.0004041,30]
[339902126,1728147123692,-500.0,0.0004041,30]
[339902127,1728147123702,-521.3,0.0004041,30]
[339902128,1728147123712,-957.32,0.0004041,30]
[339902129,1728147123722,-500.0,0.0004041,30]
[339902130,1728147123732,-532.54,0.0004041,30]
[339902131,1728147123742,-500.0,0.0004041,30]
[339902132,1728147123753,-500.0,0.0004041,30]
[339902133,1728147123763,-500.0,0.0004041,30]
[339902134,1728147123772,-500.0,0.0004041,30]
[339902135,1728147123782,-613.27,0.0004041,30]
[339902136,1728147123793,-151.0,0.0004041,14]
[339902137,1728147123803,-500.0,0.0004041,30]
[339902138,1728147123813,-500.0,0.0004041,30]
[339902139,1728147123822,-1461.62,0.0004041,30]
[339902140,1728147123832,-815.17,0.0004041,30]
[339902141,1728147123841,-551.78,0.0004041,30]
[339902142,1728147123851,-500.0,0.0004041,30]
[339902143,1728147123861,-500.0,0.0004041,30]
[339902144,1728147123871,-833.62,0.0004041,30]
[339902145,1728147123880,-973.8,0.0004041,30]
[339902146,1728147123890,-500.0,0.0004041,30]
[339902147,1728147123900,-749.79,0.0004041,30]
[339902148,1728147123909,-500.0,0.0004041,30]
[339902149,1728147123919,-500.0,0.0004041,30]
[339902150,1728147123928,-500.0,0.0004041,30]
[339902151,1728147123937,-552.5,0.0004041,30]
[339902152,1728147123948,-500.0,0.0004041,30]
[339902153,1728147123957,-500.0,0.0004041,30]
[339902154,1728147123966,-500.0,0.0004041,30]
[339902155,1728147123976,-500.0,0.0004041,30]
[339902156,1728147123985,-500.0,0.0004041,30]
[339902157,1728147123994,-595.63,0.0004041,30]
[339902158,1728147124006,-500.0,0.0004041,30]
[339902159,1728147124015,-449.96598214,0.0004041,30]
[339902160,1728147124024,-895.17,0.0004041,30]
[339902161,1728147124033,-538.69,0.0004041,30]
[339902162,1728147124043,-716.85,0.0004041,30]
[339902163,1728147124052,-500.0,0.0004041,30]
[339902164,1728147124062,-500.0,0.0004041,30]
[339902165,1728147124072,-500.0,0.0004041,30]
[339902166,1728147124081,-500.0,0.0004041,30]
[339902167,1728147124091,-734.46,0.0004041,30]
[339902168,1728147124100,-500.0,0.0004041,30]
[339902169,1728147124109,-500.0,0.0004041,30]
[339902170,1728147124118,-500.0,0.0004041,30]
[339902171,1728147124128,-744.23,0.0004041,30]
[339902172,1728147124137,-500.0,0.0004041,30]
[339902173,1728147124147,-500.0,0.0004041,30]
[339902174,1728147124156,-1043.16,0.0004041,30]
[339902175,1728147124166,-544.13,0.0004041,30]
[339902176,1728147124176,-649.58,0.0004041,30]
[339902177,1728147124185,-526.24,0.0004041,30]
[339902178,1728147124195,-837.39,0.0004041,30]
[339902179,1728147124204,-500.0,0.0004041,30]
[339902180,1728147124214,-500.0,0.0004041,30]
[339902181,1728147124223,-500.0,0.0004041,30]
[339902182,1728147124407,-1194.16,0.0004041,30]
[339902183,1728147124436,-500.0,0.0004041,30]
[339902184,1728147124448,-500.0,0.0004041,30]
[339902185,1728147124458,-500.0,0.0004041,30]
[339902186,1728147124468,-612.42,0.0004041,30]
[339902187,1728147124478,-1245.75,0.0004041,30]
[339902188,1728147124488,-510.48,0.0004041,30]
[339902189,1728147124502,-500.0,0.0004041,30]
[339902190,1728147124512,-896.41,0.0004041,30]
[339902191,1728147124522,-912.71,0.0004041,30]
[339902192,1728147124531,-570.6,0.0004041,30]
[339902193,1728147124540,-500.0,0.0004041,30]
[339902194,1728147124550,-500.0,0.0004041,30]
[339902195,1728147124559,-935.17,0.0004041,30]
[339902196,1728147124569,-500.0,0.0004041,30]
[339902197,1728147124579,-1275.76,0.0004041,30]
[339902198,1728147124589,-624.64467131,0.0004041,30]
[339902199,1728147124598,-500.0,0.0004041,30]
[339902200,1728147124608,-500.18,0.0004041,30]
[339902201,1728147124617,-500.0,0.0004041,30]
[339902202,1728147124626,-500.0,0.0004041,30]
[339902203,1728147124635,-500.0,0.0004041,30]
[339902204,1728147124645,-712.54,0.0004041,30]
[339902205,1728147124655,-713.19,0.0004041,30]
[339902206,1728147124665,-645.72,0.0004041,30]
[339902207,1728147124674,-1057.7,0.0004041,30]
[339902208,1728147124683,-749.26,0.0004041,30]
[339902209,1728147124692,-500.0,0.0004041,30]
[339902210,1728147124701,-617.04117875,0.0004041,30]
[339902211,1728147124710,-1037.04,0.0004041,30]
[339902212,1728147124720,-688.31,0.0004041,30]
[339902213,1728147124729,-500.0,0.0004041,30]
[339902214,1728147124739,-700.86,0.0004041,30]
[339902215,1728147124753,-997.54,0.0004041,30]
[339902216,1728147124763,-500.0,0.0004041,30]
[339902217,1728147124772,-534.2,0.0004041,30]
[339902218,1728147124781,-607.13,0.0004041,30]
[339902219,1728147124790,-500.0,0.0004041,30]
[339902220,1728147124800,-500.98,0.0004041,30]
[339902221,1728147124810,-500.0,0.0004041,30]
[339902222,1728147124819,-542.57,0.0004041,30]
[339902223,1728147124829,-1204.65,0.0004041,30]
[339902224,1728147124838,-500.0,0.0004041,30]
[339902225,1728147124847,-539.24,0.0004041,30]
[339902226,1728147124856,-500.0,0.0004041,30]
[339902227,1728147124865,-500.0,0.0004041,30]
[339902228,1728147124875,-1294.2,0.0004041,30]
[339902229,1728147124885,-6114.95,0.0004041,30]
[339902230,1728147124895,-610.97,0.0004041,30]
[339902231,1728147124905,-500.0,0.0004041,30]
[339902232,1728147124914,-1197.02,0.0004041,30]
[339902233,1728147124924,-500.0,0.0004041,30]
[339902234,1728147124933,-500.0,0.0004041,30]
[339902235,1728147124943,-500.0,0.0004041,30]
[339902236,1728147124952,-801.24,0.0004041,30]
[339902237,1728147124962,-533.72,0.0004041,30]
[339902238,1728147124971,-500.0,0.0004041,30]
[339902239,1728147124980,-500.0,0.0004041,30]
[339902240,1728147124989,-973.61,0.0004041,30]
[339902241,1728147124998,-743.21,0.0004041,30]
[339902242,1728147125009,-1102.84,0.0004041,30]
[339902243,1728147125018,-616.19,0.0004041,30]
[339902244,1728147125027,-500.0,0.0004041,30]
[339902245,1728147125036,-500.0,0.0004041,30]
[339902246,1728147125045,-500.0,0.0004041,30]
[339902247,1728147125055,-500.0,0.0004041,30]
[339902248,1728147125065,-1463.87,0.0004041,30]
[339902249,1728147125075,-500.0,0.0004041,30]
[339902250,1728147125084,-603.49,0.0004041,30]
[339902251,1728147125093,-500.0,0.0004041,30]
[339902252,1728147125103,-500.0,0.0004041,30]
[339902253,1728147125111,-652.66,0.0004041,30]